Workbook

Sheet (parametros definidos) (hidden)
C1: Precios | D1: Guia del maestro | E1: Manual para estudiantes | F1: Proveedor
C2: lote1 | D2: 4510 | E2: 4344 | F2: A
C3: lote2 | D3: 5000 | E3: 5500 | F3: B
C4: lote3 | D4: 3750 | E4: 3950 | F4: B
C5: lote4 | D5: 4500 | E5: 4700 | F5: C
C6: lote5 | D6: 2800 | E6: 3500 | F6: C
C8: Listas
C9: Norte de Santander | D9: Valle | E9: Sucre | F9: Antioquia | G9: Atlántico
C10: Arauca | D10: Cauca | E10: Córdoba | F10: Medellin | G10: Barranquilla
C11: Meta | D11: Palmira | E11: Montería | G11: Soledad
C12: Soacha | D12: Cali | E12: Cartagena. | G12: Valledupar
C13: Neiva | D13: Manizales. | G13: Santa Marta
C14: Ibagué
B17: lote | C17: descripción | D17: Guía del maestro | E17: proveedor | F17: llave
A18: =B18&C18 -> lote 1 Norte de Santander, Arauca, Meta, Soacha, Neiva e Ibagué.Manuales de lectura y escritura para estudiantes - primero de Primaria | B18: lote 1 Norte de Santander, Arauca, Meta, Soacha, Neiva e Ibagué. | C18: Manuales de lectura y escritura para estudiantes - primero de Primaria | D18: 4510 | E18: Chapito libros | F18: ="Lote 1 - "&C18 -> Lote 1 - Manuales de lectura y escritura para estudiantes - primero de Primaria | G18: lote 1 Norte de Santander, Arauca, Meta, Soacha, Neiva e Ibagué.
A19: =B19&C19 -> lote 1 Norte de Santander, Arauca, Meta, Soacha, Neiva e Ibagué.Guías para docentes - primero de primaria | B19: lote 1 Norte de Santander, Arauca, Meta, Soacha, Neiva e Ibagué. | C19: Guías para docentes - primero de primaria | D19: 4344 | E19: Chapito libros | F19: ="Lote 1 - "&C19 -> Lote 1 - Guías para docentes - primero de primaria | G19: lote 2 Valle, Cauca, Palmira, Cali, Manizales.
A20: lote 1 Norte de Santander, Arauca, Meta, Soacha, Neiva e Ibagué.Manuales de lectura y escritura para estudiantes - segundo de primaria | B20: lote 1 Norte de Santander, Arauca, Meta, Soacha, Neiva e Ibagué. | C20: Manuales de lectura y escritura para estudiantes - segundo de primaria | D20: 5000 | E20: Chapito libros | F20: Lote 1 - Manuales de lectura y escritura para estudiantes - segundo de primaria | G20: lote 3 Sucre, Córdoba, Montería, Cartagena.
A21: lote 1 Norte de Santander, Arauca, Meta, Soacha, Neiva e Ibagué.Guías para docentes - segundo de primaria | B21: lote 1 Norte de Santander, Arauca, Meta, Soacha, Neiva e Ibagué. | C21: Guías para docentes - segundo de primaria | D21: 5500 | E21: Chapito libros | F21: Lote 1 - Guías para docentes - segundo de primaria | G21: lote 4 Antioquia, Medellín.
A22: lote 1 Norte de Santander, Arauca, Meta, Soacha, Neiva e Ibagué.Manuales de lectura y escritura para estudiantes - tercero de primaria | B22: lote 1 Norte de Santander, Arauca, Meta, Soacha, Neiva e Ibagué. | C22: Manuales de lectura y escritura para estudiantes - tercero de primaria | D22: 3750 | E22: Chapito libros | F22: Lote 1 - Manuales de lectura y escritura para estudiantes - tercero de primaria | G22: lote 5 Atlántico, Barranquilla, Soledad, Valledupar, Santa Marta
A23: lote 1 Norte de Santander, Arauca, Meta, Soacha, Neiva e Ibagué.Guías para docentes - tercero de primaria | B23: lote 1 Norte de Santander, Arauca, Meta, Soacha, Neiva e Ibagué. | C23: Guías para docentes - tercero de primaria | D23: 3950 | E23: Chapito libros | F23: Lote 1 - Guías para docentes - tercero de primaria
A24: lote 1 Norte de Santander, Arauca, Meta, Soacha, Neiva e Ibagué.Manuales de lectura y escritura para estudiantes - cuarto de primaria | B24: lote 1 Norte de Santander, Arauca, Meta, Soacha, Neiva e Ibagué. | C24: Manuales de lectura y escritura para estudiantes - cuarto de primaria | D24: 4500 | E24: Chapito libros | F24: Lote 1 - Manuales de lectura y escritura para estudiantes - cuarto de primaria
A25: lote 1 Norte de Santander, Arauca, Meta, Soacha, Neiva e Ibagué.Guías para docentes - cuarto de primaria | B25: lote 1 Norte de Santander, Arauca, Meta, Soacha, Neiva e Ibagué. | C25: Guías para docentes - cuarto de primaria | D25: 4700 | E25: Chapito libros | F25: Lote 1 - Guías para docentes - cuarto de primaria
A26: lote 1 Norte de Santander, Arauca, Meta, Soacha, Neiva e Ibagué.Manuales de lectura y escritura para estudiantes - quinto de primaria | B26: lote 1 Norte de Santander, Arauca, Meta, Soacha, Neiva e Ibagué. | C26: Manuales de lectura y escritura para estudiantes - quinto de primaria | D26: 2800 | E26: Chapito libros | F26: Lote 1 - Manuales de lectura y escritura para estudiantes - quinto de primaria
A27: lote 1 Norte de Santander, Arauca, Meta, Soacha, Neiva e Ibagué.Guías para docentes - quinto de primaria | B27: lote 1 Norte de Santander, Arauca, Meta, Soacha, Neiva e Ibagué. | C27: Guías para docentes - quinto de primaria | D27: 3500 | E27: Chapito libros | F27: Lote 1 - Guías para docentes - quinto de primaria
A28: lote 2 Valle, Cauca, Palmira, Cali, Manizales.Manuales de lectura y escritura para estudiantes - primero de Primaria | B28: lote 2 Valle, Cauca, Palmira, Cali, Manizales. | C28: Manuales de lectura y escritura para estudiantes - primero de Primaria | D28: =+$D$18*G28 -> 7977.088641 | E28: impresión el pañuelo | F28: ="Lote 2 - "&C28 -> Lote 2 - Manuales de lectura y escritura para estudiantes - primero de Primaria | G28: =+RAND()+1 -> 1.768755796
A29: lote 2 Valle, Cauca, Palmira, Cali, Manizales.Guías para docentes - primero de primaria | B29: lote 2 Valle, Cauca, Palmira, Cali, Manizales. | C29: Guías para docentes - primero de primaria | D29: =+$D$19*G29 -> 7415.293391 | E29: impresión el pañuelo | F29: ="Lote 2 - "&C29 -> Lote 2 - Guías para docentes - primero de primaria | G29: =+RAND()+1 -> 1.707019657
A30: lote 2 Valle, Cauca, Palmira, Cali, Manizales.Manuales de lectura y escritura para estudiantes - segundo de primaria | B30: lote 2 Valle, Cauca, Palmira, Cali, Manizales. | C30: Manuales de lectura y escritura para estudiantes - segundo de primaria | D30: =+$D$20*G30 -> 6759.228195 | E30: impresión el pañuelo | F30: Lote 2 - Manuales de lectura y escritura para estudiantes - segundo de primaria | G30: 1.351845639
A31: lote 2 Valle, Cauca, Palmira, Cali, Manizales.Guías para docentes - segundo de primaria | B31: lote 2 Valle, Cauca, Palmira, Cali, Manizales. | C31: Guías para docentes - segundo de primaria | D31: =+$D$21*G31 -> 8003.443386 | E31: impresión el pañuelo | F31: Lote 2 - Guías para docentes - segundo de primaria | G31: 1.455171525
A32: lote 2 Valle, Cauca, Palmira, Cali, Manizales.Manuales de lectura y escritura para estudiantes - tercero de primaria | B32: lote 2 Valle, Cauca, Palmira, Cali, Manizales. | C32: Manuales de lectura y escritura para estudiantes - tercero de primaria | D32: =+$D$22*G32 -> 5946.973134 | E32: impresión el pañuelo | F32: Lote 2 - Manuales de lectura y escritura para estudiantes - tercero de primaria | G32: 1.585859502
A33: lote 2 Valle, Cauca, Palmira, Cali, Manizales.Guías para docentes - tercero de primaria | B33: lote 2 Valle, Cauca, Palmira, Cali, Manizales. | C33: Guías para docentes - tercero de primaria | D33: =+$D$23*G33 -> 7104.434321 | E33: impresión el pañuelo | F33: Lote 2 - Guías para docentes - tercero de primaria | G33: 1.798590967
A34: lote 2 Valle, Cauca, Palmira, Cali, Manizales.Manuales de lectura y escritura para estudiantes - cuarto de primaria | B34: lote 2 Valle, Cauca, Palmira, Cali, Manizales. | C34: Manuales de lectura y escritura para estudiantes - cuarto de primaria | D34: =+$D$24*G34 -> 7293.491061 | E34: impresión el pañuelo | F34: Lote 2 - Manuales de lectura y escritura para estudiantes - cuarto de primaria | G34: 1.620775791
A35: lote 2 Valle, Cauca, Palmira, Cali, Manizales.Guías para docentes - cuarto de primaria | B35: lote 2 Valle, Cauca, Palmira, Cali, Manizales. | C35: Guías para docentes - cuarto de primaria | D35: =+$D$25*G35 -> 6317.778575 | E35: impresión el pañuelo | F35: Lote 2 - Guías para docentes - cuarto de primaria | G35: 1.344208208
A36: lote 2 Valle, Cauca, Palmira, Cali, Manizales.Manuales de lectura y escritura para estudiantes - quinto de primaria | B36: lote 2 Valle, Cauca, Palmira, Cali, Manizales. | C36: Manuales de lectura y escritura para estudiantes - quinto de primaria | D36: =+$D$26*G36 -> 4756.750796 | E36: impresión el pañuelo | F36: Lote 2 - Manuales de lectura y escritura para estudiantes - quinto de primaria | G36: 1.69883957
A37: lote 2 Valle, Cauca, Palmira, Cali, Manizales.Guías para docentes - quinto de primaria | B37: lote 2 Valle, Cauca, Palmira, Cali, Manizales. | C37: Guías para docentes - quinto de primaria | D37: =+$D$27*G$37 -> 5736.753438 | E37: impresión el pañuelo | F37: Lote 2 - Guías para docentes - quinto de primaria | G37: 1.639072411
A38: lote 3 Sucre, Córdoba, Montería, Cartagena.Manuales de lectura y escritura para estudiantes - primero de Primaria | B38: lote 3 Sucre, Córdoba, Montería, Cartagena. | C38: Manuales de lectura y escritura para estudiantes - primero de Primaria | D38: =+$D$18*G38 -> 6270.045201 | E38: sx impresiones | F38: ="Lote 3 - "&C38 -> Lote 3 - Manuales de lectura y escritura para estudiantes - primero de Primaria | G38: 1.390253925
A39: lote 3 Sucre, Córdoba, Montería, Cartagena.Guías para docentes - primero de primaria | B39: lote 3 Sucre, Córdoba, Montería, Cartagena. | C39: Guías para docentes - primero de primaria | D39: =+$D$19*G39 -> 8182.11158 | E39: sx impresiones | F39: ="Lote 3 - "&C39 -> Lote 3 - Guías para docentes - primero de primaria | G39: 1.883543181
A40: lote 3 Sucre, Córdoba, Montería, Cartagena.Manuales de lectura y escritura para estudiantes - segundo de primaria | B40: lote 3 Sucre, Córdoba, Montería, Cartagena. | C40: Manuales de lectura y escritura para estudiantes - segundo de primaria | D40: =+$D$20*G40 -> 9929.100558 | E40: sx impresiones | F40: Lote 3 - Manuales de lectura y escritura para estudiantes - segundo de primaria | G40: 1.985820112
A41: lote 3 Sucre, Córdoba, Montería, Cartagena.Guías para docentes - segundo de primaria | B41: lote 3 Sucre, Córdoba, Montería, Cartagena. | C41: Guías para docentes - segundo de primaria | D41: =+$D$21*G41 -> 7686.894351 | E41: sx impresiones | F41: Lote 3 - Guías para docentes - segundo de primaria | G41: 1.397617155
A42: lote 3 Sucre, Córdoba, Montería, Cartagena.Manuales de lectura y escritura para estudiantes - tercero de primaria | B42: lote 3 Sucre, Córdoba, Montería, Cartagena. | C42: Manuales de lectura y escritura para estudiantes - tercero de primaria | D42: =+$D$22*G42 -> 6402.17356 | E42: sx impresiones | F42: Lote 3 - Manuales de lectura y escritura para estudiantes - tercero de primaria | G42: 1.707246283
A43: lote 3 Sucre, Córdoba, Montería, Cartagena.Guías para docentes - tercero de primaria | B43: lote 3 Sucre, Córdoba, Montería, Cartagena. | C43: Guías para docentes - tercero de primaria | D43: =+$D$23*G43 -> 6143.089078 | E43: sx impresiones | F43: Lote 3 - Guías para docentes - tercero de primaria | G43: 1.555212425
A44: lote 3 Sucre, Córdoba, Montería, Cartagena.Manuales de lectura y escritura para estudiantes - cuarto de primaria | B44: lote 3 Sucre, Córdoba, Montería, Cartagena. | C44: Manuales de lectura y escritura para estudiantes - cuarto de primaria | D44: =+$D$24*G44 -> 4913.552994 | E44: sx impresiones | F44: Lote 3 - Manuales de lectura y escritura para estudiantes - cuarto de primaria | G44: 1.091900665
A45: lote 3 Sucre, Córdoba, Montería, Cartagena.Guías para docentes - cuarto de primaria | B45: lote 3 Sucre, Córdoba, Montería, Cartagena. | C45: Guías para docentes - cuarto de primaria | D45: =+$D$25*G45 -> 6593.14936 | E45: sx impresiones | F45: Lote 3 - Guías para docentes - cuarto de primaria | G45: 1.402797736
A46: lote 3 Sucre, Córdoba, Montería, Cartagena.Manuales de lectura y escritura para estudiantes - quinto de primaria | B46: lote 3 Sucre, Córdoba, Montería, Cartagena. | C46: Manuales de lectura y escritura para estudiantes - quinto de primaria | D46: =+$D$26*G46 -> 3731.691574 | E46: sx impresiones | F46: Lote 3 - Manuales de lectura y escritura para estudiantes - quinto de primaria | G46: 1.332746991
A47: lote 3 Sucre, Córdoba, Montería, Cartagena.Guías para docentes - quinto de primaria | B47: lote 3 Sucre, Córdoba, Montería, Cartagena. | C47: Guías para docentes - quinto de primaria | D47: =+$D$27*G$37 -> 5736.753438 | E47: sx impresiones | F47: Lote 3 - Guías para docentes - quinto de primaria | G47: 1.739417063
A48: lote 4 Antioquia, Medellín.Manuales de lectura y escritura para estudiantes - primero de Primaria | B48: lote 4 Antioquia, Medellín. | C48: Manuales de lectura y escritura para estudiantes - primero de Primaria | D48: =+$D$18*G48 -> 8424.475275 | E48: impresión y distribución mambo | F48: ="Lote 4 - "&C48 -> Lote 4 - Manuales de lectura y escritura para estudiantes - primero de Primaria | G48: 1.867954606
A49: lote 4 Antioquia, Medellín.Guías para docentes - primero de primaria | B49: lote 4 Antioquia, Medellín. | C49: Guías para docentes - primero de primaria | D49: =+$D$19*G49 -> 7216.512979 | E49: impresión y distribución mambo | F49: ="Lote 4 - "&C49 -> Lote 4 - Guías para docentes - primero de primaria | G49: 1.661259894
A50: lote 4 Antioquia, Medellín.Manuales de lectura y escritura para estudiantes - segundo de primaria | B50: lote 4 Antioquia, Medellín. | C50: Manuales de lectura y escritura para estudiantes - segundo de primaria | D50: =+$D$20*G50 -> 9834.754678 | E50: impresión y distribución mambo | F50: Lote 4 - Manuales de lectura y escritura para estudiantes - segundo de primaria | G50: 1.966950936
A51: lote 4 Antioquia, Medellín.Guías para docentes - segundo de primaria | B51: lote 4 Antioquia, Medellín. | C51: Guías para docentes - segundo de primaria | D51: =+$D$21*G51 -> 6475.789577 | E51: impresión y distribución mambo | F51: Lote 4 - Guías para docentes - segundo de primaria | G51: 1.177416287
A52: lote 4 Antioquia, Medellín.Manuales de lectura y escritura para estudiantes - tercero de primaria | B52: lote 4 Antioquia, Medellín. | C52: Manuales de lectura y escritura para estudiantes - tercero de primaria | D52: =+$D$22*G52 -> 3850.891312 | E52: impresión y distribución mambo | F52: Lote 4 - Manuales de lectura y escritura para estudiantes - tercero de primaria | G52: 1.02690435
A53: lote 4 Antioquia, Medellín.Guías para docentes - tercero de primaria | B53: lote 4 Antioquia, Medellín. | C53: Guías para docentes - tercero de primaria | D53: =+$D$23*G53 -> 5784.341122 | E53: impresión y distribución mambo | F53: Lote 4 - Guías para docentes - tercero de primaria | G53: 1.464390157
A54: lote 4 Antioquia, Medellín.Manuales de lectura y escritura para estudiantes - cuarto de primaria | B54: lote 4 Antioquia, Medellín. | C54: Manuales de lectura y escritura para estudiantes - cuarto de primaria | D54: =+$D$24*G54 -> 8969.917517 | E54: impresión y distribución mambo | F54: Lote 4 - Manuales de lectura y escritura para estudiantes - cuarto de primaria | G54: 1.993315004
A55: lote 4 Antioquia, Medellín.Guías para docentes - cuarto de primaria | B55: lote 4 Antioquia, Medellín. | C55: Guías para docentes - cuarto de primaria | D55: =+$D$25*G55 -> 5846.801317 | E55: impresión y distribución mambo | F55: Lote 4 - Guías para docentes - cuarto de primaria | G55: 1.24400028
A56: lote 4 Antioquia, Medellín.Manuales de lectura y escritura para estudiantes - quinto de primaria | B56: lote 4 Antioquia, Medellín. | C56: Manuales de lectura y escritura para estudiantes - quinto de primaria | D56: =+$D$26*G56 -> 5298.516848 | E56: impresión y distribución mambo | F56: Lote 4 - Manuales de lectura y escritura para estudiantes - quinto de primaria | G56: 1.892327446
A57: lote 4 Antioquia, Medellín.Guías para docentes - quinto de primaria | B57: lote 4 Antioquia, Medellín. | C57: Guías para docentes - quinto de primaria | D57: =+$D$27*G$37 -> 5736.753438 | E57: impresión y distribución mambo | F57: Lote 4 - Guías para docentes - quinto de primaria | G57: 1.170101278
A58: lote 5 Atlántico, Barranquilla, Soledad, Valledupar, Santa MartaManuales de lectura y escritura para estudiantes - primero de Primaria | B58: lote 5 Atlántico, Barranquilla, Soledad, Valledupar, Santa Marta | C58: Manuales de lectura y escritura para estudiantes - primero de Primaria | D58: =+$D$18*G58 -> 4727.063425 | E58: impresiones el tambor | F58: ="Lote 5 - "&C58 -> Lote 5 - Manuales de lectura y escritura para estudiantes - primero de Primaria | G58: 1.048129363
A59: lote 5 Atlántico, Barranquilla, Soledad, Valledupar, Santa MartaGuías para docentes - primero de primaria | B59: lote 5 Atlántico, Barranquilla, Soledad, Valledupar, Santa Marta | C59: Guías para docentes - primero de primaria | D59: =+$D$19*G59 -> 6345.614247 | E59: impresiones el tambor | F59: ="Lote 5 - "&C59 -> Lote 5 - Guías para docentes - primero de primaria | G59: 1.46077676
A60: lote 5 Atlántico, Barranquilla, Soledad, Valledupar, Santa MartaManuales de lectura y escritura para estudiantes - segundo de primaria | B60: lote 5 Atlántico, Barranquilla, Soledad, Valledupar, Santa Marta | C60: Manuales de lectura y escritura para estudiantes - segundo de primaria | D60: =+$D$20*G60 -> 8477.30525 | E60: impresiones el tambor | F60: Lote 5 - Manuales de lectura y escritura para estudiantes - segundo de primaria | G60: 1.69546105
A61: lote 5 Atlántico, Barranquilla, Soledad, Valledupar, Santa MartaGuías para docentes - segundo de primaria | B61: lote 5 Atlántico, Barranquilla, Soledad, Valledupar, Santa Marta | C61: Guías para docentes - segundo de primaria | D61: =+$D$21*G61 -> 7792.984821 | E61: impresiones el tambor | F61: Lote 5 - Guías para docentes - segundo de primaria | G61: 1.416906331
A62: lote 5 Atlántico, Barranquilla, Soledad, Valledupar, Santa MartaManuales de lectura y escritura para estudiantes - tercero de primaria | B62: lote 5 Atlántico, Barranquilla, Soledad, Valledupar, Santa Marta | C62: Manuales de lectura y escritura para estudiantes - tercero de primaria | D62: =+$D$22*G62 -> 4886.46221 | E62: impresiones el tambor | F62: Lote 5 - Manuales de lectura y escritura para estudiantes - tercero de primaria | G62: 1.303056589
A63: lote 5 Atlántico, Barranquilla, Soledad, Valledupar, Santa MartaGuías para docentes - tercero de primaria | B63: lote 5 Atlántico, Barranquilla, Soledad, Valledupar, Santa Marta | C63: Guías para docentes - tercero de primaria | D63: =+$D$23*G63 -> 5802.28537 | E63: impresiones el tambor | F63: Lote 5 - Guías para docentes - tercero de primaria | G63: 1.468933005
A64: lote 5 Atlántico, Barranquilla, Soledad, Valledupar, Santa MartaManuales de lectura y escritura para estudiantes - cuarto de primaria | B64: lote 5 Atlántico, Barranquilla, Soledad, Valledupar, Santa Marta | C64: Manuales de lectura y escritura para estudiantes - cuarto de primaria | D64: =+$D$24*G64 -> 7220.114015 | E64: impresiones el tambor | F64: Lote 5 - Manuales de lectura y escritura para estudiantes - cuarto de primaria | G64: 1.604469781
A65: lote 5 Atlántico, Barranquilla, Soledad, Valledupar, Santa MartaGuías para docentes - cuarto de primaria | B65: lote 5 Atlántico, Barranquilla, Soledad, Valledupar, Santa Marta | C65: Guías para docentes - cuarto de primaria | D65: =+$D$25*G65 -> 8123.828226 | E65: impresiones el tambor | F65: Lote 5 - Guías para docentes - cuarto de primaria | G65: 1.728474091
A66: lote 5 Atlántico, Barranquilla, Soledad, Valledupar, Santa MartaManuales de lectura y escritura para estudiantes - quinto de primaria | B66: lote 5 Atlántico, Barranquilla, Soledad, Valledupar, Santa Marta | C66: Manuales de lectura y escritura para estudiantes - quinto de primaria | D66: =+$D$26*G66 -> 3781.522678 | E66: impresiones el tambor | F66: Lote 5 - Manuales de lectura y escritura para estudiantes - quinto de primaria | G66: 1.350543814
A67: lote 5 Atlántico, Barranquilla, Soledad, Valledupar, Santa MartaGuías para docentes - quinto de primaria | B67: lote 5 Atlántico, Barranquilla, Soledad, Valledupar, Santa Marta | C67: Guías para docentes - quinto de primaria | D67: =+$D$27*G$37 -> 5736.753438 | E67: impresiones el tambor | F67: Lote 5 - Guías para docentes - quinto de primaria | G67: 1.174218375

Sheet Listas (hidden)
A1: Lotes
A2: lote 1 Norte de Santander, Arauca, Meta, Soacha, Neiva e Ibagué.
A3: lote 2 Valle, Cauca, Palmira, Cali, Manizales.
A4: lote 3 Sucre, Córdoba, Montería, Cartagena.
A5: lote 4 Antioquia, Medellín.
A6: lote 5 Atlántico, Barranquilla, Soledad, Valledupar, Santa Marta

Sheet SolCotizacion
A1: Solicitud de Compra
A2: Contrato de agregación de material pedagogico de MinEducación
A4: Información de la Entidad Compradora
B6: Nombre de la Entidad: | J6: NIT:
B8: Dirección de la Entidad: | J8: Municipio:
B10: Nombre del Comprador: | J10: Teléfono
M11: ext
B12: Correo del comprador
A14: Fechas estimadas
B16: fecha de solicitud de compra
A20: Requerimientos para las Entregas
B22: Filas a agregar o eliminar:
B24: 1
A26: Información sedes
A27: Item | B27: Departamento | E27: Ciudad | H27: Nombre del establecimiento educativo | K27: Dirección del establecimiento educativo (entrega) | M27: rector colegio (responsable de recibir Material Pedagogico | O27: Telefono de contacto | Q27: Correo de contacto | S27: Codigo dane Sede | T27: Codigo dane Colegio
A28: 1
A29: 1. Si requiere agregue o elimine filas
A31: Productos
B33: Lote | C33: lote 1 Norte de Santander, Arauca, Meta, Soacha, Neiva e Ibagué.
B35: No. | C35: Tipo de Material Pedagogico | F35: Sede 1 | G35: Cantidad total a comprar | H35: Precio unitario | I35: Precio con gravámen | J35: Valor total
A36: =VLOOKUP($C$33&$C36,Precios!$A$2:$G$51,6,0) -> Manuales de lectura y escritura para estudiantes - primero de PrimariaL 1 | B36: 1 | C36: Manuales de lectura y escritura para estudiantes - primero de Primaria | G36: =SUM(F36:F36) -> 0 | H36: =VLOOKUP($C$33&$C36,Precios!$A$2:$G$51,4,0) -> 3216 | I36: =((H36/(1-$H$59))-H36)+H36 -> 3216 | J36: =G36*I36 -> 0 | K36: =VLOOKUP($C$33&$C36,Precios!$A$2:$G$51,5,0) -> PANAMERICANA FORMAS E IMPRESOS S.A.
A37: =VLOOKUP($C$33&$C37,Precios!$A$2:$G$51,6,0) -> Guías para docentes - primero de primariaL 1 | B37: 2 | C37: Guías para docentes - primero de primaria | D37: Guías para docentes - primero de primaria | E37: Guías para docentes - primero de primaria | G37: 0 | H37: =VLOOKUP($C$33&$C37,Precios!$A$2:$G$51,4,0) -> 6192 | I37: =((H37/(1-$H$59))-H37)+H37 -> 6192 | J37: =G37*I37 -> 0 | K37: =VLOOKUP($C$33&$C37,Precios!$A$2:$G$51,5,0) -> PANAMERICANA FORMAS E IMPRESOS S.A.
A38: =VLOOKUP($C$33&$C38,Precios!$A$2:$G$51,6,0) -> Manuales de lectura y escritura para estudiantes - segundo de primariaL 1 | B38: 3 | C38: Manuales de lectura y escritura para estudiantes - segundo de primaria | D38: Manuales de lectura y escritura para estudiantes - segundo de primaria | E38: Manuales de lectura y escritura para estudiantes - segundo de primaria | G38: 0 | H38: =VLOOKUP($C$33&$C38,Precios!$A$2:$G$51,4,0) -> 2160 | I38: 2160 | J38: 0 | K38: =VLOOKUP($C$33&$C38,Precios!$A$2:$G$51,5,0) -> PANAMERICANA FORMAS E IMPRESOS S.A.
A39: =VLOOKUP($C$33&$C39,Precios!$A$2:$G$51,6,0) -> Guías para docentes - segundo de primariaL 1 | B39: 4 | C39: Guías para docentes - segundo de primaria | D39: Guías para docentes - segundo de primaria | E39: Guías para docentes - segundo de primaria | G39: 0 | H39: =VLOOKUP($C$33&$C39,Precios!$A$2:$G$51,4,0) -> 6192 | I39: 6192 | J39: 0 | K39: =VLOOKUP($C$33&$C39,Precios!$A$2:$G$51,5,0) -> PANAMERICANA FORMAS E IMPRESOS S.A.
A40: =VLOOKUP($C$33&$C40,Precios!$A$2:$G$51,6,0) -> Manuales de lectura y escritura para estudiantes - tercero de primariaL 1 | B40: 5 | C40: Manuales de lectura y escritura para estudiantes - tercero de primaria | D40: Manuales de lectura y escritura para estudiantes - tercero de primaria | E40: Manuales de lectura y escritura para estudiantes - tercero de primaria | G40: 0 | H40: =VLOOKUP($C$33&$C40,Precios!$A$2:$G$51,4,0) -> 3183 | I40: 3183 | J40: 0 | K40: =VLOOKUP($C$33&$C40,Precios!$A$2:$G$51,5,0) -> PANAMERICANA FORMAS E IMPRESOS S.A.
A41: =VLOOKUP($C$33&$C41,Precios!$A$2:$G$51,6,0) -> Guías para docentes - tercero de primariaL 1 | B41: 6 | C41: Guías para docentes - tercero de primaria | D41: Guías para docentes - tercero de primaria | E41: Guías para docentes - tercero de primaria | G41: 0 | H41: =VLOOKUP($C$33&$C41,Precios!$A$2:$G$51,4,0) -> 6192 | I41: 6192 | J41: 0 | K41: =VLOOKUP($C$33&$C41,Precios!$A$2:$G$51,5,0) -> PANAMERICANA FORMAS E IMPRESOS S.A.
A42: =VLOOKUP($C$33&$C42,Precios!$A$2:$G$51,6,0) -> Manuales de lectura y escritura para estudiantes - cuarto de primariaL 1 | B42: 7 | C42: Manuales de lectura y escritura para estudiantes - cuarto de primaria | D42: Manuales de lectura y escritura para estudiantes - cuarto de primaria | E42: Manuales de lectura y escritura para estudiantes - cuarto de primaria | G42: 0 | H42: =VLOOKUP($C$33&$C42,Precios!$A$2:$G$51,4,0) -> 3073 | I42: 3073 | J42: 0 | K42: =VLOOKUP($C$33&$C42,Precios!$A$2:$G$51,5,0) -> PANAMERICANA FORMAS E IMPRESOS S.A.
A43: =VLOOKUP($C$33&$C43,Precios!$A$2:$G$51,6,0) -> Guías para docentes - cuarto de primariaL 1 | B43: 8 | C43: Guías para docentes - cuarto de primaria | D43: Guías para docentes - cuarto de primaria | E43: Guías para docentes - cuarto de primaria | G43: 0 | H43: =VLOOKUP($C$33&$C43,Precios!$A$2:$G$51,4,0) -> 5573 | I43: 5573 | J43: 0 | K43: =VLOOKUP($C$33&$C43,Precios!$A$2:$G$51,5,0) -> PANAMERICANA FORMAS E IMPRESOS S.A.
A44: =VLOOKUP($C$33&$C44,Precios!$A$2:$G$51,6,0) -> Manuales de lectura y escritura para estudiantes - quinto de primariaL 1 | B44: 9 | C44: Manuales de lectura y escritura para estudiantes - quinto de primaria | D44: Manuales de lectura y escritura para estudiantes - quinto de primaria | E44: Manuales de lectura y escritura para estudiantes - quinto de primaria | G44: 0 | H44: =VLOOKUP($C$33&$C44,Precios!$A$2:$G$51,4,0) -> 2581 | I44: 2581 | J44: 0 | K44: =VLOOKUP($C$33&$C44,Precios!$A$2:$G$51,5,0) -> PANAMERICANA FORMAS E IMPRESOS S.A.
A45: =VLOOKUP($C$33&$C45,Precios!$A$2:$G$51,6,0) -> Guías para docentes - quinto de primariaL 1 | B45: 10 | C45: Guías para docentes - quinto de primaria | D45: Guías para docentes - quinto de primaria | E45: Guías para docentes - quinto de primaria | G45: 0 | H45: =VLOOKUP($C$33&$C45,Precios!$A$2:$G$51,4,0) -> 6192 | I45: 6192 | J45: 0 | K45: =VLOOKUP($C$33&$C45,Precios!$A$2:$G$51,5,0) -> PANAMERICANA FORMAS E IMPRESOS S.A.
I47: Subtotal | J47: =+SUM(J36:J45) -> 0
I48: IVA | J48: =+J47*0.16 -> 0 | K48: =J48 -> 0
I49: Total | J49: =+J47+J48 -> 0
A51: Gravámenes adicionales (estampillas)
A53: Si los hay, indique los gravámenes adicionales (estampilllas) a los que está sujeta la Orden de Compra. Son gravámens adiconales por ejemplo; estampillas y demás impuestos territoriales. Los impuestos como ICA y retención en la fuente NO son gravámenes adicionales.
A56: No. | B56: Descripción | H56: % Gravámen
A57: 1
E59: Total Gravámenes adicionales | H59: =SUM(H57:I57) -> 0

Sheet csv (hidden)
A1: Requisition | B1: Record Identifier | C1: Submit For Approval? | D1: Need By Date | E1: Justification | F1: Department Name | G1: Buyer Note | H1: Requested By (Email) | I1: Requested By (Login) | J1: PCard Name | K1: Ship To Name | L1: Ship To Id | M1: Ship To Attention | N1: Ship To Street1 | O1: Ship To Street2 | P1: Ship To City | Q1: Ship To State | R1: Ship To Postal Code | S1: Ship to Country Code | T1: Ship to Country Name | U1: Ship To Location Code | V1: N.I.T. | W1: nit | X1: Mecanismo de agregaciÃ³n* | Y1: acuerdo_marco_de_precios* | Z1: Necesidad del bien o servicio* | AA1: necesidad_del_bien_o_servicio* | AB1: NÃºmero de cotizaciÃ³n | AC1: num_cotizacion | AD1: Modalidad de selecciÃ³n* | AE1: modalidad_de_seleccion* | AF1: DestinaciÃ³n del gasto* | AG1: destinacin_del_gasto* | AH1: Origen de los recursos* | AI1: origen_de_los____recursos* | AJ1: Supervisor de la Orden de Compra* | AK1: supervisor_1* | AL1: Correo electrÃ³nico del supervisor* | AM1: correo_electrnico_del_supervisor* | AN1: TelÃ©fono del supervisor* | AO1: telefono_supervisor* | AP1: Vencimiento de la Orden de Compra* | AQ1: contract_expiration_date* | AR1: Especificaciones adicionales de entrega | AS1: especificaciones_adicionales_de_entrega | AT1: GravÃ¡menes adicionales | AU1: gravamenes | AV1: IntegraciÃ³n con SIIF | AW1: siif_entity | AX1: Acepto tÃ©rminos y condiciones* | AY1: acepto_trminos_y_condiciones*
A2: Requisition Line | B2: Record Identifier | C2: Line Number | D2: Catalog Item Number | E2: Catalog Item Name | F2: Non Catalog Item Description | G2: Supplier Part Number | H2: Quantity | I2: Price | J2: Need By Date | K2: Supplier Name | L2: Supplier Number | M2: UOM Code | N2: Commodity Name | O2: Contract Name | P2: Currency Code | Q2: Asset Tags | R2: Chart of Account Name | S2: Account Name | T2: Account Code | U2: Account Segment 1 | V2: Account Segment 2 | W2: Account Segment 3 | X2: Account Segment 4 | Y2: Account Segment 5 | Z2: Account Segment 6 | AA2: Account Segment 7 | AB2: Account Segment 8 | AC2: Account Segment 9 | AD2: Account Segment 10 | AE2: Account Segment 11 | AF2: Account Segment 12 | AG2: Account Segment 13 | AH2: Account Segment 14 | AI2: Account Segment 15 | AJ2: Account Segment 16 | AK2: Account Segment 17 | AL2: Account Segment 18 | AM2: Account Segment 19 | AN2: Account Segment 20 | AO2: Account Allocation Amount | AP2: Account Allocation Percent | AQ2: Payment Term Code | AR2: Shipping Term Code | AS2: Budget Period Name
A3: Requisition | B3: RECORD1 | C3: No | F3: Digite nombre de la entidad | H3: crear.entidad@colombiacompra.gov.co | I3: digite.usuario | K3: Direccion | X3: Material PedagÃ³gico | Y3: Material PedagÃ³gico | Z3: Necesidad | AA3: Necesidad | AD3: ContrataciÃ³n directa (AgregaciÃ³n demanda) | AE3: ContrataciÃ³n directa (AgregaciÃ³n demanda) | AF3: Funcionamiento | AG3: Funcionamiento | AH3: Recursos propios | AI3: Recursos propios | AJ3: Digite supervisor | AK3: Digite supervisor | AL3: Digite correo | AM3: Digite correo | AN3: 1 | AO3: 1 | AP3: 2020-01-01 | AQ3: 2020-01-01 | AT3: Gravamenes | AU3: Gravamenes | AV3: SÃ­ | AW3: SÃ­
A4: Requisition Line | B4: RECORD1 | C4: 1 | E4: "Manuales de lectura y escritura para estudiantes - primero de PrimariaL 1" | H4: 10 | I4: "3216" | K4: PANAMERICANA FORMAS E IMPRESOS S.A. | M4: Und | N4: AgregaciÃ³n de la demanda | P4: COP
A5: Requisition Line | B5: RECORD1 | C5: 2 | E5: "GuÃ­as para docentes - primero de primariaL 1" | H5: 10 | I5: "6192" | K5: PANAMERICANA FORMAS E IMPRESOS S.A. | M5: Und | N5: AgregaciÃ³n de la demanda | P5: COP
A6: Requisition Line | B6: RECORD1 | C6: 3 | E6: "Manuales de lectura y escritura para estudiantes - segundo de primariaL 1" | H6: 10 | I6: "2160" | K6: PANAMERICANA FORMAS E IMPRESOS S.A. | M6: Und | N6: AgregaciÃ³n de la demanda | P6: COP
A7: Requisition Line | B7: RECORD1 | C7: 4 | E7: "GuÃ­as para docentes - segundo de primariaL 1" | H7: 10 | I7: "6192" | K7: PANAMERICANA FORMAS E IMPRESOS S.A. | M7: Und | N7: AgregaciÃ³n de la demanda | P7: COP
A8: Requisition Line | B8: RECORD1 | C8: 5 | E8: "Manuales de lectura y escritura para estudiantes - tercero de primariaL 1" | H8: 10 | I8: "3183" | K8: PANAMERICANA FORMAS E IMPRESOS S.A. | M8: Und | N8: AgregaciÃ³n de la demanda | P8: COP
A9: Requisition Line | B9: RECORD1 | C9: 6 | E9: "GuÃ­as para docentes - tercero de primariaL 1" | H9: 10 | I9: "6192" | K9: PANAMERICANA FORMAS E IMPRESOS S.A. | M9: Und | N9: AgregaciÃ³n de la demanda | P9: COP
A10: Requisition Line | B10: RECORD1 | C10: 7 | E10: "Manuales de lectura y escritura para estudiantes - cuarto de primariaL 1" | H10: 10 | I10: "3073" | K10: PANAMERICANA FORMAS E IMPRESOS S.A. | M10: Und | N10: AgregaciÃ³n de la demanda | P10: COP
A11: Requisition Line | B11: RECORD1 | C11: 8 | E11: "GuÃ­as para docentes - cuarto de primariaL 1" | H11: 10 | I11: "5573" | K11: PANAMERICANA FORMAS E IMPRESOS S.A. | M11: Und | N11: AgregaciÃ³n de la demanda | P11: COP
A12: Requisition Line | B12: RECORD1 | C12: 9 | E12: "Manuales de lectura y escritura para estudiantes - quinto de primariaL 1" | H12: 10 | I12: "2581" | K12: PANAMERICANA FORMAS E IMPRESOS S.A. | M12: Und | N12: AgregaciÃ³n de la demanda | P12: COP
A13: Requisition Line | B13: RECORD1 | C13: 10 | E13: "GuÃ­as para docentes - quinto de primariaL 1" | H13: 10 | I13: "6192" | K13: PANAMERICANA FORMAS E IMPRESOS S.A. | M13: Und | N13: AgregaciÃ³n de la demanda | P13: COP
A14: Requisition Line | B14: RECORD1 | C14: 11 | E14: "IVA" | H14: 1 | I14: "71286.4" | K14: PANAMERICANA FORMAS E IMPRESOS S.A. | M14: Und | N14: AgregaciÃ³n de la demanda | P14: COP

Sheet Precios (hidden)
A1: llaveLocal | B1: lote | C1: descripción | D1: Precio Unitario | E1: proveedor | F1: llave | G1: otro
A2: =B2&C2 -> lote 1 Norte de Santander, Arauca, Meta, Soacha, Neiva e Ibagué.Manuales de lectura y escritura para estudiantes - primero de Primaria | B2: lote 1 Norte de Santander, Arauca, Meta, Soacha, Neiva e Ibagué. | C2: Manuales de lectura y escritura para estudiantes - primero de Primaria | D2: 3216 | E2: PANAMERICANA FORMAS E IMPRESOS S.A. | F2: Manuales de lectura y escritura para estudiantes - primero de PrimariaL 1 | G2: lote 1 Norte de Santander, Arauca, Meta, Soacha, Neiva e Ibagué.
A3: =B3&C3 -> lote 1 Norte de Santander, Arauca, Meta, Soacha, Neiva e Ibagué.Guías para docentes - primero de primaria | B3: lote 1 Norte de Santander, Arauca, Meta, Soacha, Neiva e Ibagué. | C3: Guías para docentes - primero de primaria | D3: 6192 | E3: PANAMERICANA FORMAS E IMPRESOS S.A. | F3: Guías para docentes - primero de primariaL 1 | G3: lote 2 Valle, Cauca, Palmira, Cali, Manizales.
A4: lote 1 Norte de Santander, Arauca, Meta, Soacha, Neiva e Ibagué.Manuales de lectura y escritura para estudiantes - segundo de primaria | B4: lote 1 Norte de Santander, Arauca, Meta, Soacha, Neiva e Ibagué. | C4: Manuales de lectura y escritura para estudiantes - segundo de primaria | D4: 2160 | E4: PANAMERICANA FORMAS E IMPRESOS S.A. | F4: Manuales de lectura y escritura para estudiantes - segundo de primariaL 1 | G4: lote 3 Sucre, Córdoba, Montería, Cartagena.
A5: lote 1 Norte de Santander, Arauca, Meta, Soacha, Neiva e Ibagué.Guías para docentes - segundo de primaria | B5: lote 1 Norte de Santander, Arauca, Meta, Soacha, Neiva e Ibagué. | C5: Guías para docentes - segundo de primaria | D5: 6192 | E5: PANAMERICANA FORMAS E IMPRESOS S.A. | F5: Guías para docentes - segundo de primariaL 1 | G5: lote 4 Antioquia, Medellín.
A6: lote 1 Norte de Santander, Arauca, Meta, Soacha, Neiva e Ibagué.Manuales de lectura y escritura para estudiantes - tercero de primaria | B6: lote 1 Norte de Santander, Arauca, Meta, Soacha, Neiva e Ibagué. | C6: Manuales de lectura y escritura para estudiantes - tercero de primaria | D6: 3183 | E6: PANAMERICANA FORMAS E IMPRESOS S.A. | F6: Manuales de lectura y escritura para estudiantes - tercero de primariaL 1 | G6: lote 5 Atlántico, Barranquilla, Soledad, Valledupar, Santa Marta
A7: lote 1 Norte de Santander, Arauca, Meta, Soacha, Neiva e Ibagué.Guías para docentes - tercero de primaria | B7: lote 1 Norte de Santander, Arauca, Meta, Soacha, Neiva e Ibagué. | C7: Guías para docentes - tercero de primaria | D7: 6192 | E7: PANAMERICANA FORMAS E IMPRESOS S.A. | F7: Guías para docentes - tercero de primariaL 1
A8: lote 1 Norte de Santander, Arauca, Meta, Soacha, Neiva e Ibagué.Manuales de lectura y escritura para estudiantes - cuarto de primaria | B8: lote 1 Norte de Santander, Arauca, Meta, Soacha, Neiva e Ibagué. | C8: Manuales de lectura y escritura para estudiantes - cuarto de primaria | D8: 3073 | E8: PANAMERICANA FORMAS E IMPRESOS S.A. | F8: Manuales de lectura y escritura para estudiantes - cuarto de primariaL 1
A9: lote 1 Norte de Santander, Arauca, Meta, Soacha, Neiva e Ibagué.Guías para docentes - cuarto de primaria | B9: lote 1 Norte de Santander, Arauca, Meta, Soacha, Neiva e Ibagué. | C9: Guías para docentes - cuarto de primaria | D9: 5573 | E9: PANAMERICANA FORMAS E IMPRESOS S.A. | F9: Guías para docentes - cuarto de primariaL 1
A10: lote 1 Norte de Santander, Arauca, Meta, Soacha, Neiva e Ibagué.Manuales de lectura y escritura para estudiantes - quinto de primaria | B10: lote 1 Norte de Santander, Arauca, Meta, Soacha, Neiva e Ibagué. | C10: Manuales de lectura y escritura para estudiantes - quinto de primaria | D10: 2581 | E10: PANAMERICANA FORMAS E IMPRESOS S.A. | F10: Manuales de lectura y escritura para estudiantes - quinto de primariaL 1
A11: lote 1 Norte de Santander, Arauca, Meta, Soacha, Neiva e Ibagué.Guías para docentes - quinto de primaria | B11: lote 1 Norte de Santander, Arauca, Meta, Soacha, Neiva e Ibagué. | C11: Guías para docentes - quinto de primaria | D11: 6192 | E11: PANAMERICANA FORMAS E IMPRESOS S.A. | F11: Guías para docentes - quinto de primariaL 1
A12: lote 2 Valle, Cauca, Palmira, Cali, Manizales.Manuales de lectura y escritura para estudiantes - primero de Primaria | B12: lote 2 Valle, Cauca, Palmira, Cali, Manizales. | C12: Manuales de lectura y escritura para estudiantes - primero de Primaria | D12: 3150 | E12: PANAMERICANA FORMAS E IMPRESOS S.A. | F12: Manuales de lectura y escritura para estudiantes - primero de PrimariaL 2 | G12: 1.041748831
A13: lote 2 Valle, Cauca, Palmira, Cali, Manizales.Guías para docentes - primero de primaria | B13: lote 2 Valle, Cauca, Palmira, Cali, Manizales. | C13: Guías para docentes - primero de primaria | D13: 5000 | E13: PANAMERICANA FORMAS E IMPRESOS S.A. | F13: Guías para docentes - primero de primariaL 2 | G13: 1.406337144
A14: lote 2 Valle, Cauca, Palmira, Cali, Manizales.Manuales de lectura y escritura para estudiantes - segundo de primaria | B14: lote 2 Valle, Cauca, Palmira, Cali, Manizales. | C14: Manuales de lectura y escritura para estudiantes - segundo de primaria | D14: 2367 | E14: PANAMERICANA FORMAS E IMPRESOS S.A. | F14: Manuales de lectura y escritura para estudiantes - segundo de primariaL 2 | G14: 1.080454562
A15: lote 2 Valle, Cauca, Palmira, Cali, Manizales.Guías para docentes - segundo de primaria | B15: lote 2 Valle, Cauca, Palmira, Cali, Manizales. | C15: Guías para docentes - segundo de primaria | D15: 5000 | E15: PANAMERICANA FORMAS E IMPRESOS S.A. | F15: Guías para docentes - segundo de primariaL 2 | G15: 1.493465735
A16: lote 2 Valle, Cauca, Palmira, Cali, Manizales.Manuales de lectura y escritura para estudiantes - tercero de primaria | B16: lote 2 Valle, Cauca, Palmira, Cali, Manizales. | C16: Manuales de lectura y escritura para estudiantes - tercero de primaria | D16: 3010 | E16: PANAMERICANA FORMAS E IMPRESOS S.A. | F16: Manuales de lectura y escritura para estudiantes - tercero de primariaL 2 | G16: 1.698685642
A17: lote 2 Valle, Cauca, Palmira, Cali, Manizales.Guías para docentes - tercero de primaria | B17: lote 2 Valle, Cauca, Palmira, Cali, Manizales. | C17: Guías para docentes - tercero de primaria | D17: 5000 | E17: PANAMERICANA FORMAS E IMPRESOS S.A. | F17: Guías para docentes - tercero de primariaL 2 | G17: 1.586294654
A18: lote 2 Valle, Cauca, Palmira, Cali, Manizales.Manuales de lectura y escritura para estudiantes - cuarto de primaria | B18: lote 2 Valle, Cauca, Palmira, Cali, Manizales. | C18: Manuales de lectura y escritura para estudiantes - cuarto de primaria | D18: 2850 | E18: PANAMERICANA FORMAS E IMPRESOS S.A. | F18: Manuales de lectura y escritura para estudiantes - cuarto de primariaL 2 | G18: 1.548332905
A19: lote 2 Valle, Cauca, Palmira, Cali, Manizales.Guías para docentes - cuarto de primaria | B19: lote 2 Valle, Cauca, Palmira, Cali, Manizales. | C19: Guías para docentes - cuarto de primaria | D19: 5000 | E19: PANAMERICANA FORMAS E IMPRESOS S.A. | F19: Guías para docentes - cuarto de primariaL 2 | G19: 1.441849437
A20: lote 2 Valle, Cauca, Palmira, Cali, Manizales.Manuales de lectura y escritura para estudiantes - quinto de primaria | B20: lote 2 Valle, Cauca, Palmira, Cali, Manizales. | C20: Manuales de lectura y escritura para estudiantes - quinto de primaria | D20: 2750 | E20: PANAMERICANA FORMAS E IMPRESOS S.A. | F20: Manuales de lectura y escritura para estudiantes - quinto de primariaL 2 | G20: 1.332280095
A21: lote 2 Valle, Cauca, Palmira, Cali, Manizales.Guías para docentes - quinto de primaria | B21: lote 2 Valle, Cauca, Palmira, Cali, Manizales. | C21: Guías para docentes - quinto de primaria | D21: 5000 | E21: PANAMERICANA FORMAS E IMPRESOS S.A. | F21: Guías para docentes - quinto de primariaL 2 | G21: 1.602363124
A22: lote 3 Sucre, Córdoba, Montería, Cartagena.Manuales de lectura y escritura para estudiantes - primero de Primaria | B22: lote 3 Sucre, Córdoba, Montería, Cartagena. | C22: Manuales de lectura y escritura para estudiantes - primero de Primaria | D22: 3180 | E22: PANAMERICANA FORMAS E IMPRESOS S.A. | F22: Manuales de lectura y escritura para estudiantes - primero de PrimariaL 3 | G22: 1.427547755
A23: lote 3 Sucre, Córdoba, Montería, Cartagena.Guías para docentes - primero de primaria | B23: lote 3 Sucre, Córdoba, Montería, Cartagena. | C23: Guías para docentes - primero de primaria | D23: 5000 | E23: PANAMERICANA FORMAS E IMPRESOS S.A. | F23: Guías para docentes - primero de primariaL 3 | G23: 1.150795542
A24: lote 3 Sucre, Córdoba, Montería, Cartagena.Manuales de lectura y escritura para estudiantes - segundo de primaria | B24: lote 3 Sucre, Córdoba, Montería, Cartagena. | C24: Manuales de lectura y escritura para estudiantes - segundo de primaria | D24: 2385 | E24: PANAMERICANA FORMAS E IMPRESOS S.A. | F24: Manuales de lectura y escritura para estudiantes - segundo de primariaL 3 | G24: 1.515140185
A25: lote 3 Sucre, Córdoba, Montería, Cartagena.Guías para docentes - segundo de primaria | B25: lote 3 Sucre, Córdoba, Montería, Cartagena. | C25: Guías para docentes - segundo de primaria | D25: 5000 | E25: PANAMERICANA FORMAS E IMPRESOS S.A. | F25: Guías para docentes - segundo de primariaL 3 | G25: 1.429839158
A26: lote 3 Sucre, Córdoba, Montería, Cartagena.Manuales de lectura y escritura para estudiantes - tercero de primaria | B26: lote 3 Sucre, Córdoba, Montería, Cartagena. | C26: Manuales de lectura y escritura para estudiantes - tercero de primaria | D26: 3130 | E26: PANAMERICANA FORMAS E IMPRESOS S.A. | F26: Manuales de lectura y escritura para estudiantes - tercero de primariaL 3 | G26: 1.924200463
A27: lote 3 Sucre, Córdoba, Montería, Cartagena.Guías para docentes - tercero de primaria | B27: lote 3 Sucre, Córdoba, Montería, Cartagena. | C27: Guías para docentes - tercero de primaria | D27: 5000 | E27: PANAMERICANA FORMAS E IMPRESOS S.A. | F27: Guías para docentes - tercero de primariaL 3 | G27: 1.742434492
A28: lote 3 Sucre, Córdoba, Montería, Cartagena.Manuales de lectura y escritura para estudiantes - cuarto de primaria | B28: lote 3 Sucre, Córdoba, Montería, Cartagena. | C28: Manuales de lectura y escritura para estudiantes - cuarto de primaria | D28: 3015 | E28: PANAMERICANA FORMAS E IMPRESOS S.A. | F28: Manuales de lectura y escritura para estudiantes - cuarto de primariaL 3 | G28: 1.469981657
A29: lote 3 Sucre, Córdoba, Montería, Cartagena.Guías para docentes - cuarto de primaria | B29: lote 3 Sucre, Córdoba, Montería, Cartagena. | C29: Guías para docentes - cuarto de primaria | D29: 5000 | E29: PANAMERICANA FORMAS E IMPRESOS S.A. | F29: Guías para docentes - cuarto de primariaL 3 | G29: 1.787788211
A30: lote 3 Sucre, Córdoba, Montería, Cartagena.Manuales de lectura y escritura para estudiantes - quinto de primaria | B30: lote 3 Sucre, Córdoba, Montería, Cartagena. | C30: Manuales de lectura y escritura para estudiantes - quinto de primaria | D30: 2865 | E30: PANAMERICANA FORMAS E IMPRESOS S.A. | F30: Manuales de lectura y escritura para estudiantes - quinto de primariaL 3 | G30: 1.823252757
A31: lote 3 Sucre, Córdoba, Montería, Cartagena.Guías para docentes - quinto de primaria | B31: lote 3 Sucre, Córdoba, Montería, Cartagena. | C31: Guías para docentes - quinto de primaria | D31: 5000 | E31: PANAMERICANA FORMAS E IMPRESOS S.A. | F31: Guías para docentes - quinto de primariaL 3 | G31: 1.094104014
A32: lote 4 Antioquia, Medellín.Manuales de lectura y escritura para estudiantes - primero de Primaria | B32: lote 4 Antioquia, Medellín. | C32: Manuales de lectura y escritura para estudiantes - primero de Primaria | D32: 2700 | E32: ARTE IMPRESORES S.A | F32: Manuales de lectura y escritura para estudiantes - primero de PrimariaL 4 | G32: 1.916019739
A33: lote 4 Antioquia, Medellín.Guías para docentes - primero de primaria | B33: lote 4 Antioquia, Medellín. | C33: Guías para docentes - primero de primaria | D33: 4850 | E33: ARTE IMPRESORES S.A | F33: Guías para docentes - primero de primariaL 4 | G33: 1.161650839
A34: lote 4 Antioquia, Medellín.Manuales de lectura y escritura para estudiantes - segundo de primaria | B34: lote 4 Antioquia, Medellín. | C34: Manuales de lectura y escritura para estudiantes - segundo de primaria | D34: 2200 | E34: ARTE IMPRESORES S.A | F34: Manuales de lectura y escritura para estudiantes - segundo de primariaL 4 | G34: 1.19578493
A35: lote 4 Antioquia, Medellín.Guías para docentes - segundo de primaria | B35: lote 4 Antioquia, Medellín. | C35: Guías para docentes - segundo de primaria | D35: 4850 | E35: ARTE IMPRESORES S.A | F35: Guías para docentes - segundo de primariaL 4 | G35: 1.661278454
A36: lote 4 Antioquia, Medellín.Manuales de lectura y escritura para estudiantes - tercero de primaria | B36: lote 4 Antioquia, Medellín. | C36: Manuales de lectura y escritura para estudiantes - tercero de primaria | D36: 2710 | E36: ARTE IMPRESORES S.A | F36: Manuales de lectura y escritura para estudiantes - tercero de primariaL 4 | G36: 1.777705981
A37: lote 4 Antioquia, Medellín.Guías para docentes - tercero de primaria | B37: lote 4 Antioquia, Medellín. | C37: Guías para docentes - tercero de primaria | D37: 4850 | E37: ARTE IMPRESORES S.A | F37: Guías para docentes - tercero de primariaL 4 | G37: 1.131357969
A38: lote 4 Antioquia, Medellín.Manuales de lectura y escritura para estudiantes - cuarto de primaria | B38: lote 4 Antioquia, Medellín. | C38: Manuales de lectura y escritura para estudiantes - cuarto de primaria | D38: 2500 | E38: ARTE IMPRESORES S.A | F38: Manuales de lectura y escritura para estudiantes - cuarto de primariaL 4 | G38: 1.944935335
A39: lote 4 Antioquia, Medellín.Guías para docentes - cuarto de primaria | B39: lote 4 Antioquia, Medellín. | C39: Guías para docentes - cuarto de primaria | D39: 4850 | E39: ARTE IMPRESORES S.A | F39: Guías para docentes - cuarto de primariaL 4 | G39: 1.032567778
A40: lote 4 Antioquia, Medellín.Manuales de lectura y escritura para estudiantes - quinto de primaria | B40: lote 4 Antioquia, Medellín. | C40: Manuales de lectura y escritura para estudiantes - quinto de primaria | D40: 2500 | E40: ARTE IMPRESORES S.A | F40: Manuales de lectura y escritura para estudiantes - quinto de primariaL 4 | G40: 1.806743456
A41: lote 4 Antioquia, Medellín.Guías para docentes - quinto de primaria | B41: lote 4 Antioquia, Medellín. | C41: Guías para docentes - quinto de primaria | D41: 4850 | E41: ARTE IMPRESORES S.A | F41: Guías para docentes - quinto de primariaL 4 | G41: 1.695173859
A42: lote 5 Atlántico, Barranquilla, Soledad, Valledupar, Santa MartaManuales de lectura y escritura para estudiantes - primero de Primaria | B42: lote 5 Atlántico, Barranquilla, Soledad, Valledupar, Santa Marta | C42: Manuales de lectura y escritura para estudiantes - primero de Primaria | D42: 3906 | E42: CARVAJAL SOLUCIONES DE COMUNICACION S.A.S. | F42: Manuales de lectura y escritura para estudiantes - primero de PrimariaL 5 | G42: 1.697416579
A43: lote 5 Atlántico, Barranquilla, Soledad, Valledupar, Santa MartaGuías para docentes - primero de primaria | B43: lote 5 Atlántico, Barranquilla, Soledad, Valledupar, Santa Marta | C43: Guías para docentes - primero de primaria | D43: 6192 | E43: CARVAJAL SOLUCIONES DE COMUNICACION S.A.S. | F43: Guías para docentes - primero de primariaL 5 | G43: 1.054988007
A44: lote 5 Atlántico, Barranquilla, Soledad, Valledupar, Santa MartaManuales de lectura y escritura para estudiantes - segundo de primaria | B44: lote 5 Atlántico, Barranquilla, Soledad, Valledupar, Santa Marta | C44: Manuales de lectura y escritura para estudiantes - segundo de primaria | D44: 2936 | E44: CARVAJAL SOLUCIONES DE COMUNICACION S.A.S. | F44: Manuales de lectura y escritura para estudiantes - segundo de primariaL 5 | G44: 1.006833439
A45: lote 5 Atlántico, Barranquilla, Soledad, Valledupar, Santa MartaGuías para docentes - segundo de primaria | B45: lote 5 Atlántico, Barranquilla, Soledad, Valledupar, Santa Marta | C45: Guías para docentes - segundo de primaria | D45: 6192 | E45: CARVAJAL SOLUCIONES DE COMUNICACION S.A.S. | F45: Guías para docentes - segundo de primariaL 5 | G45: 1.108118174
A46: lote 5 Atlántico, Barranquilla, Soledad, Valledupar, Santa MartaManuales de lectura y escritura para estudiantes - tercero de primaria | B46: lote 5 Atlántico, Barranquilla, Soledad, Valledupar, Santa Marta | C46: Manuales de lectura y escritura para estudiantes - tercero de primaria | D46: 4102 | E46: CARVAJAL SOLUCIONES DE COMUNICACION S.A.S. | F46: Manuales de lectura y escritura para estudiantes - tercero de primariaL 5 | G46: 1.882793893
A47: lote 5 Atlántico, Barranquilla, Soledad, Valledupar, Santa MartaGuías para docentes - tercero de primaria | B47: lote 5 Atlántico, Barranquilla, Soledad, Valledupar, Santa Marta | C47: Guías para docentes - tercero de primaria | D47: 6192 | E47: CARVAJAL SOLUCIONES DE COMUNICACION S.A.S. | F47: Guías para docentes - tercero de primariaL 5 | G47: 1.050328303
A48: lote 5 Atlántico, Barranquilla, Soledad, Valledupar, Santa MartaManuales de lectura y escritura para estudiantes - cuarto de primaria | B48: lote 5 Atlántico, Barranquilla, Soledad, Valledupar, Santa Marta | C48: Manuales de lectura y escritura para estudiantes - cuarto de primaria | D48: 3926 | E48: CARVAJAL SOLUCIONES DE COMUNICACION S.A.S. | F48: Manuales de lectura y escritura para estudiantes - cuarto de primariaL 5 | G48: 1.150531082
A49: lote 5 Atlántico, Barranquilla, Soledad, Valledupar, Santa MartaGuías para docentes - cuarto de primaria | B49: lote 5 Atlántico, Barranquilla, Soledad, Valledupar, Santa Marta | C49: Guías para docentes - cuarto de primaria | D49: 6192 | E49: CARVAJAL SOLUCIONES DE COMUNICACION S.A.S. | F49: Guías para docentes - cuarto de primariaL 5 | G49: 1.84829622
A50: lote 5 Atlántico, Barranquilla, Soledad, Valledupar, Santa MartaManuales de lectura y escritura para estudiantes - quinto de primaria | B50: lote 5 Atlántico, Barranquilla, Soledad, Valledupar, Santa Marta | C50: Manuales de lectura y escritura para estudiantes - quinto de primaria | D50: 3725 | E50: CARVAJAL SOLUCIONES DE COMUNICACION S.A.S. | F50: Manuales de lectura y escritura para estudiantes - quinto de primariaL 5 | G50: 1.382157207
A51: lote 5 Atlántico, Barranquilla, Soledad, Valledupar, Santa MartaGuías para docentes - quinto de primaria | B51: lote 5 Atlántico, Barranquilla, Soledad, Valledupar, Santa Marta | C51: Guías para docentes - quinto de primaria | D51: 6192 | E51: CARVAJAL SOLUCIONES DE COMUNICACION S.A.S. | F51: Guías para docentes - quinto de primariaL 5 | G51: 1.140526393
